[Event "Live Chess"]
[Site "Chess.com"]
[Date "2021.02.06"]
[Round "2"]
[White "PoleStarChess"]
[Black "thundergamerz"]
[Result "0-1"]
[CurrentPosition "r4knr/1pp5/p7/3Q1N2/4P3/P1P5/5P2/R1B1R1Kq w - -"]
[Timezone "UTC"]
[ECO "D00"]
[ECOUrl "https://www.chess.com/openings/Queens-Pawn-Opening-Chigorin-Variation-2...Nf6-3.Nf3"]
[UTCDate "2021.02.06"]
[UTCTime "19:02:29"]
[WhiteElo "1107"]
[BlackElo "1283"]
[TimeControl "1200+10"]
[Termination "thundergamerz won by checkmate"]
[StartTime "19:02:29"]
[EndDate "2021.02.06"]
[EndTime "19:07:48"]
[Link "https://www.chess.com/live/game/6472142946"]

1. d4 {[%clk 0:20:10]} 1... d5 {[%clk 0:20:06]} 2. Nf3 {[%clk 0:20:16.2]} 2... Nf6 {[%clk 0:20:12.1]} 3. Nc3 {[%clk 0:20:22.8]} 3... Bf5 {[%clk 0:20:19.8]} 4. e3 {[%clk 0:20:23.9]} 4... e6 {[%clk 0:20:27.2]} 5. Bd3 {[%clk 0:20:13]} 5... a6 {[%clk 0:20:31]} 6. h3 {[%clk 0:20:19.2]} 6... Nc6 {[%clk 0:20:36.8]} 7. g4 {[%clk 0:20:26.5]} 7... Bxd3 {[%clk 0:20:45.3]} 8. cxd3 {[%clk 0:20:34.5]} 8... Bb4 {[%clk 0:20:54.2]} 9. a3 {[%clk 0:20:42.2]} 9... Bxc3+ {[%clk 0:21:02.7]} 10. bxc3 {[%clk 0:20:50.8]} 10... Ne7 {[%clk 0:20:56.1]} 11. O-O {[%clk 0:20:47.3]} 11... h6 {[%clk 0:20:58.9]} 12. g5 {[%clk 0:20:45.8]} 12... hxg5 {[%clk 0:21:07.7]} 13. Nxg5 {[%clk 0:20:54.3]} 13... Nf5 {[%clk 0:21:10.9]} 14. e4 {[%clk 0:20:47]} 14... dxe4 {[%clk 0:21:19]} 15. dxe4 {[%clk 0:20:55.8]} 15... Nh6 {[%clk 0:21:16]} 16. Re1 {[%clk 0:20:58.6]} 16... Nd7 {[%clk 0:21:23.8]} 17. d5 {[%clk 0:21:03.2]} 17... Ng8 {[%clk 0:21:14.8]} 18. dxe6 {[%clk 0:21:06.8]} 18... fxe6 {[%clk 0:21:22.8]} 19. Nxe6 {[%clk 0:21:14.6]} 19... Qh4 {[%clk 0:21:28.3]} 20. Nxg7+ {[%clk 0:21:15.5]} 20... Kf7 {[%clk 0:21:28.5]} 21. Nf5 {[%clk 0:21:20.6]} 21... Qxh3 {[%clk 0:21:35.7]} 22. Qxd7+ {[%clk 0:21:11.2]} 22... Kf8 {[%clk 0:21:28.1]} 23. Qd5 {[%clk 0:20:56.8]} 23... Qh1# {[%clk 0:21:36.3]} 0-1

[Event "Live Chess"]
[Site "Chess.com"]
[Date "2021.02.06"]
[Round "2"]
[White "Sanat2"]
[Black "ExcelQueen"]
[Result "1-0"]
[CurrentPosition "5rk1/2R3Q1/1p6/p3P2p/5B2/3N3P/PP3PP1/6K1 b - -"]
[Timezone "UTC"]
[ECO "C54"]
[ECOUrl "https://www.chess.com/openings/Giuoco-Piano-Game-Center-Attack-5...exd4-6.cxd4"]
[UTCDate "2021.02.06"]
[UTCTime "19:13:12"]
[WhiteElo "1325"]
[BlackElo "770"]
[TimeControl "1200+10"]
[Termination "Sanat2 won by checkmate"]
[StartTime "19:13:12"]
[EndDate "2021.02.06"]
[EndTime "19:22:41"]
[Link "https://www.chess.com/live/game/6472246043"]

1. e4 {[%clk 0:20:09]} 1... e5 {[%clk 0:20:06.6]} 2. Nf3 {[%clk 0:20:15.9]} 2... Nc6 {[%clk 0:20:08]} 3. Bc4 {[%clk 0:20:24.7]} 3... Bc5 {[%clk 0:20:15.2]} 4. c3 {[%clk 0:20:33.3]} 4... Nf6 {[%clk 0:20:21.2]} 5. d4 {[%clk 0:20:42.3]} 5... exd4 {[%clk 0:20:17.4]} 6. cxd4 {[%clk 0:20:50.2]} 6... Bb6 {[%clk 0:20:13.7]} 7. e5 {[%clk 0:20:58.3]} 7... Ne4 {[%clk 0:20:09.5]} 8. O-O {[%clk 0:20:52.4]} 8... O-O {[%clk 0:20:04.2]} 9. Re1 {[%clk 0:21:00.6]} 9... d5 {[%clk 0:19:41.9]} 10. Bb3 {[%clk 0:20:45.7]} 10... f6 {[%clk 0:19:27.6]} 11. Rxe4 {[%clk 0:20:40.3]} 11... fxe5 {[%clk 0:19:21.5]} 12. dxe5 {[%clk 0:20:07.1]} 12... Kh8 {[%clk 0:19:23.5]} 13. Re1 {[%clk 0:20:14.1]} 13... Qh4 {[%clk 0:19:11.4]} 14. Nxh4 {[%clk 0:20:20.7]} 14... Nd4 {[%clk 0:19:09.8]} 15. Rf1 {[%clk 0:20:20.6]} 15... Nxb3 {[%clk 0:19:17.7]} 16. Qxb3 {[%clk 0:20:28.6]} 16... Re8 {[%clk 0:19:11]} 17. Nf3 {[%clk 0:20:36]} 17... Bg4 {[%clk 0:19:14.7]} 18. Bf4 {[%clk 0:20:37.4]} 18... Bxf3 {[%clk 0:19:20.9]} 19. Qxf3 {[%clk 0:20:45.9]} 19... Rf8 {[%clk 0:19:27.8]} 20. Qg3 {[%clk 0:20:52]} 20... Rae8 {[%clk 0:19:19.2]} 21. Re1 {[%clk 0:20:54.6]} 21... Re7 {[%clk 0:19:24.3]} 22. Nc3 {[%clk 0:21:02]} 22... Ba5 {[%clk 0:19:32.5]} 23. Rac1 {[%clk 0:21:00]} 23... d4 {[%clk 0:19:39.9]} 24. Nd5 {[%clk 0:21:04.7]} 24... Bxe1 {[%clk 0:19:47.4]} 25. Nxe7 {[%clk 0:21:13.9]} 25... Bb4 {[%clk 0:19:41.9]} 26. Nd5 {[%clk 0:21:07.9]} 26... c6 {[%clk 0:19:38.4]} 27. Nxb4 {[%clk 0:21:15]} 27... c5 {[%clk 0:19:39.7]} 28. Rxc5 {[%clk 0:21:19.2]} 28... d3 {[%clk 0:19:40.2]} 29. Nxd3 {[%clk 0:21:26.8]} 29... b6 {[%clk 0:19:48.3]} 30. Rc3 {[%clk 0:21:35.7]} 30... h5 {[%clk 0:19:50.1]} 31. h3 {[%clk 0:21:43.9]} 31... a5 {[%clk 0:19:56.8]} 32. Rc7 {[%clk 0:21:52.2]} 32... Kg8 {[%clk 0:19:37.6]} 33. Qxg7# {[%clk 0:21:59.7]} 1-0

[Event "Live Chess"]
[Site "Chess.com"]
[Date "2021.02.06"]
[Round "2"]
[White "lighteningcrushers30"]
[Black "superpengha"]
[Result "0-1"]
[CurrentPosition "r3r1k1/p1b2pB1/7p/1p6/8/7N/PP3PPq/3R1RK1 w - -"]
[Timezone "UTC"]
[ECO "C50"]
[ECOUrl "https://www.chess.com/openings/Giuoco-Piano-Game-Four-Knights-Game"]
[UTCDate "2021.02.06"]
[UTCTime "19:02:55"]
[WhiteElo "1146"]
[BlackElo "955"]
[TimeControl "1200+10"]
[Termination "superpengha won by checkmate"]
[StartTime "19:02:55"]
[EndDate "2021.02.06"]
[EndTime "19:07:59"]
[Link "https://www.chess.com/live/game/6472146885"]

1. e4 {[%clk 0:20:04.1]} 1... e5 {[%clk 0:19:53.9]} 2. Nf3 {[%clk 0:20:08.8]} 2... Nc6 {[%clk 0:20:00.1]} 3. Bc4 {[%clk 0:20:12.4]} 3... Bc5 {[%clk 0:20:03.2]} 4. Nc3 {[%clk 0:20:17.7]} 4... Nf6 {[%clk 0:20:10.8]} 5. Ng5 {[%clk 0:20:25.5]} 5... O-O {[%clk 0:20:12.4]} 6. Qf3 {[%clk 0:20:31.8]} 6... Nd4 {[%clk 0:20:16.1]} 7. Qh3 {[%clk 0:20:25]} 7... h6 {[%clk 0:20:22.4]} 8. O-O {[%clk 0:20:28.3]} 8... d5 {[%clk 0:20:24.6]} 9. exd5 {[%clk 0:20:32.5]} 9... Bxh3 {[%clk 0:20:32.4]} 10. Nxh3 {[%clk 0:20:33.6]} 10... Re8 {[%clk 0:20:31]} 11. d3 {[%clk 0:20:39.2]} 11... Nxd5 {[%clk 0:20:37.7]} 12. Nxd5 {[%clk 0:20:44.3]} 12... b5 {[%clk 0:20:34.2]} 13. Bxb5 {[%clk 0:20:47.7]} 13... Nxb5 {[%clk 0:20:40.4]} 14. c4 {[%clk 0:20:46.1]} 14... c6 {[%clk 0:20:39.6]} 15. Nf6+ {[%clk 0:20:45.9]} 15... Qxf6 {[%clk 0:20:41.8]} 16. cxb5 {[%clk 0:20:54.6]} 16... cxb5 {[%clk 0:20:49.4]} 17. Be3 {[%clk 0:20:32.3]} 17... Bd6 {[%clk 0:20:54]} 18. Rad1 {[%clk 0:20:31.4]} 18... Bc7 {[%clk 0:21:00.4]} 19. d4 {[%clk 0:20:37.6]} 19... exd4 {[%clk 0:21:06.5]} 20. Bxd4 {[%clk 0:20:45.6]} 20... Qd6 {[%clk 0:21:14.4]} 21. Bxg7 {[%clk 0:20:46.3]} 21... Qxh2# {[%clk 0:21:21]} 0-1


1200+10

[Event "Live Chess"]
[Site "Chess.com"]
[Date "2021.02.06"]
[Round "2"]
[White "shiningCrystal"]
[Black "Pusheen_the_PR0"]
[Result "1-0"]
[CurrentPosition "r3k2r/ppp1Qpp1/2q1b3/7p/2BR2nB/2N4P/PPP2PP1/5RK1 b kq -"]
[Timezone "UTC"]
[ECO "C56"]
[ECOUrl "https://www.chess.com/openings/Italian-Game-Max-Lange-Spielmann-Defense"]
[UTCDate "2021.02.06"]
[UTCTime "19:03:02"]
[WhiteElo "1253"]
[BlackElo "704"]
[TimeControl "1200+10"]
[Termination "shiningCrystal won by checkmate"]
[StartTime "19:03:02"]
[EndDate "2021.02.06"]
[EndTime "19:10:21"]
[Link "https://www.chess.com/live/game/6472147940"]

1. e4 {[%clk 0:20:09.2]} 1... e5 {[%clk 0:20:07.2]} 2. Nf3 {[%clk 0:20:15.2]} 2... Nc6 {[%clk 0:20:15.7]} 3. Bc4 {[%clk 0:20:22.8]} 3... Nf6 {[%clk 0:20:22]} 4. d4 {[%clk 0:20:30.4]} 4... exd4 {[%clk 0:20:28.1]} 5. O-O {[%clk 0:20:36.9]} 5... Bc5 {[%clk 0:20:32.8]} 6. e5 {[%clk 0:20:44.3]} 6... Ng4 {[%clk 0:20:38.3]} 7. Bf4 {[%clk 0:20:50.7]} 7... d3 {[%clk 0:20:38.1]} 8. Qxd3 {[%clk 0:20:48.1]} 8... d6 {[%clk 0:20:44]} 9. Bg3 {[%clk 0:19:57.2]} 9... Bd7 {[%clk 0:20:32.5]} 10. h3 {[%clk 0:19:47.2]} 10... h5 {[%clk 0:20:38.2]} 11. Bh4 {[%clk 0:19:49.3]} 11... Qc8 {[%clk 0:20:41]} 12. Nc3 {[%clk 0:19:06.6]} 12... dxe5 {[%clk 0:20:23.5]} 13. Qd5 {[%clk 0:18:23.1]} 13... Be6 {[%clk 0:20:15.8]} 14. Qxc5 {[%clk 0:18:13.8]} 14... Qd7 {[%clk 0:20:14.9]} 15. Rad1 {[%clk 0:18:08.4]} 15... Nd4 {[%clk 0:20:17.7]} 16. Nxd4 {[%clk 0:18:10.1]} 16... exd4 {[%clk 0:20:25.4]} 17. Rxd4 {[%clk 0:18:16.8]} 17... Qc6 {[%clk 0:20:17.3]} 18. Qe7# {[%clk 0:18:23.1]} 1-0

[Event "Live Chess"]
[Site "Chess.com"]
[Date "2021.02.06"]
[Round "2"]
[White "chess4me1ly"]
[Black "lionkingh"]
[Result "0-1"]
[CurrentPosition "r3kb1r/4pppp/p1n5/1pp5/1q6/K6P/PPP4P/RNB5 w kq -"]
[Timezone "UTC"]
[ECO "B20"]
[ECOUrl "https://www.chess.com/openings/Sicilian-Defense-Amazon-Attack"]
[UTCDate "2021.02.06"]
[UTCTime "19:03:10"]
[WhiteElo "206"]
[BlackElo "1315"]
[TimeControl "1200+10"]
[Termination "lionkingh won by checkmate"]
[StartTime "19:03:10"]
[EndDate "2021.02.06"]
[EndTime "19:07:54"]
[Link "https://www.chess.com/live/game/6472148478"]

1. e4 {[%clk 0:20:08.9]} 1... c5 {[%clk 0:17:59]} 2. Qg4 {[%clk 0:20:14]} 2... Nf6 {[%clk 0:17:25.8]} 3. Qh3 {[%clk 0:20:14.2]} 3... d5 {[%clk 0:17:32.4]} 4. Bb5+ {[%clk 0:20:18.8]} 4... Nc6 {[%clk 0:17:34.3]} 5. exd5 {[%clk 0:20:23.5]} 5... Bxh3 {[%clk 0:17:41.3]} 6. gxh3 {[%clk 0:20:30.8]} 6... Nxd5 {[%clk 0:17:47.4]} 7. Nf3 {[%clk 0:20:33.3]} 7... a6 {[%clk 0:17:54.4]} 8. Bc4 {[%clk 0:20:40.4]} 8... b5 {[%clk 0:18:01.5]} 9. Bxd5 {[%clk 0:20:49]} 9... Qxd5 {[%clk 0:18:09.9]} 10. Ng1 {[%clk 0:20:52.9]} 10... Qxh1 {[%clk 0:18:16.4]} 11. d4 {[%clk 0:20:59.3]} 11... Qxg1+ {[%clk 0:18:23.8]} 12. Kd2 {[%clk 0:21:04.2]} 12... Qxf2+ {[%clk 0:18:31.8]} 13. Kc3 {[%clk 0:21:10.2]} 13... Qxd4+ {[%clk 0:18:40]} 14. Kb3 {[%clk 0:21:17.5]} 14... Qc4+ {[%clk 0:18:49]} 15. Ka3 {[%clk 0:21:26.1]} 15... Qb4# {[%clk 0:18:57.8]} 0-1

[Event "Live Chess"]
[Site "Chess.com"]
[Date "2021.02.06"]
[Round "2"]
[White "barnaclesbear"]
[Black "MasterAmmu2"]
[Result "1-0"]
[CurrentPosition "4R1k1/5ppp/1p6/8/P6B/Rp3N1P/1P3PPK/8 b - -"]
[Timezone "UTC"]
[ECO "C46"]
[ECOUrl "https://www.chess.com/openings/Three-Knights-Opening-3...Bb4"]
[UTCDate "2021.02.06"]
[UTCTime "19:03:06"]
[WhiteElo "1175"]
[BlackElo "744"]
[TimeControl "1200+10"]
[Termination "barnaclesbear won by checkmate"]
[StartTime "19:03:06"]
[EndDate "2021.02.06"]
[EndTime "19:15:18"]
[Link "https://www.chess.com/live/game/6472149083"]

1. e4 {[%clk 0:20:10]} 1... e5 {[%clk 0:20:08.9]} 2. Nf3 {[%clk 0:20:17.4]} 2... Nc6 {[%clk 0:20:14.7]} 3. Nc3 {[%clk 0:20:25.1]} 3... Bb4 {[%clk 0:20:20.8]} 4. Bc4 {[%clk 0:20:31.9]} 4... Bxc3 {[%clk 0:20:28.7]} 5. dxc3 {[%clk 0:20:38.3]} 5... Nf6 {[%clk 0:20:37]} 6. Bg5 {[%clk 0:20:43.4]} 6... O-O {[%clk 0:20:42.5]} 7. O-O {[%clk 0:20:49.8]} 7... d6 {[%clk 0:20:36.5]} 8. h3 {[%clk 0:20:53.2]} 8... Be6 {[%clk 0:20:35.5]} 9. Bb3 {[%clk 0:20:44.9]} 9... Bxb3 {[%clk 0:20:43.5]} 10. cxb3 {[%clk 0:20:50.3]} 10... Qe7 {[%clk 0:20:41.1]} 11. a4 {[%clk 0:20:20.2]} 11... Qe6 {[%clk 0:20:48.3]} 12. Re1 {[%clk 0:20:09.6]} 12... Rad8 {[%clk 0:20:54.7]} 13. c4 {[%clk 0:19:45.3]} 13... Na5 {[%clk 0:20:56.4]} 14. Bh4 {[%clk 0:19:09.6]} 14... c6 {[%clk 0:20:54.7]} 15. Ra3 {[%clk 0:18:22.8]} 15... d5 {[%clk 0:21:00.1]} 16. exd5 {[%clk 0:18:10.4]} 16... cxd5 {[%clk 0:21:07.4]} 17. Rxe5 {[%clk 0:17:38.7]} 17... Qd6 {[%clk 0:21:06.8]} 18. Bxf6 {[%clk 0:17:18]} 18... dxc4 {[%clk 0:21:13.5]} 19. Qxd6 {[%clk 0:16:52.7]} 19... Rxd6 {[%clk 0:21:20.9]} 20. Rxa5 {[%clk 0:16:19.9]} 20... cxb3 {[%clk 0:21:25]} 21. Be7 {[%clk 0:15:46.3]} 21... Rd1+ {[%clk 0:21:32.1]} 22. Kh2 {[%clk 0:15:53.5]} 22... Re8 {[%clk 0:21:39.2]} 23. Bh4 {[%clk 0:15:41.1]} 23... b6 {[%clk 0:21:46.3]} 24. Rxa7 {[%clk 0:15:34.8]} 24... Rd3 {[%clk 0:21:42.9]} 25. Rb7 {[%clk 0:15:03.4]} 25... Re6 {[%clk 0:21:44.9]} 26. Rb8+ {[%clk 0:14:57.2]} 26... Rd8 {[%clk 0:21:49.5]} 27. Rxd8+ {[%clk 0:15:05.6]} 27... Re8 {[%clk 0:21:58.1]} 28. Rxe8# {[%clk 0:15:14.6]} 1-0

[Event "Live Chess"]
[Site "Chess.com"]
[Date "2021.02.06"]
[Round "2"]
[White "agarwal4553"]
[Black "A_slithering_ape"]
[Result "1-0"]
[CurrentPosition "r7/pp3p2/2krpN1p/8/P1R5/3P3P/2P2PP1/1R4K1 b - -"]
[Timezone "UTC"]
[ECO "B10"]
[ECOUrl "https://www.chess.com/openings/Caro-Kann-Defense-2.Nf3-d5"]
[UTCDate "2021.02.06"]
[UTCTime "19:03:36"]
[WhiteElo "899"]
[BlackElo "1093"]
[TimeControl "1200+10"]
[Termination "agarwal4553 won by checkmate"]
[StartTime "19:03:36"]
[EndDate "2021.02.06"]
[EndTime "19:08:22"]
[Link "https://www.chess.com/live/game/6472153441"]

1. e4 {[%clk 0:20:09.7]} 1... c6 {[%clk 0:20:07.7]} 2. Nf3 {[%clk 0:20:17.3]} 2... d5 {[%clk 0:20:16.2]} 3. d3 {[%clk 0:20:22]} 3... Bg4 {[%clk 0:20:21.6]} 4. Be2 {[%clk 0:20:23.2]} 4... Nf6 {[%clk 0:20:30]} 5. O-O {[%clk 0:20:29.4]} 5... e6 {[%clk 0:20:34.9]} 6. Nc3 {[%clk 0:20:31.6]} 6... Bxf3 {[%clk 0:20:43.2]} 7. Bxf3 {[%clk 0:20:40.2]} 7... Nbd7 {[%clk 0:20:28.3]} 8. exd5 {[%clk 0:20:45.4]} 8... cxd5 {[%clk 0:20:32.3]} 9. Re1 {[%clk 0:20:50]} 9... Bd6 {[%clk 0:20:07.5]} 10. h3 {[%clk 0:20:45.1]} 10... Ne5 {[%clk 0:20:06.6]} 11. Bg5 {[%clk 0:20:48.1]} 11... Nxf3+ {[%clk 0:20:08.9]} 12. Qxf3 {[%clk 0:20:51.9]} 12... h6 {[%clk 0:20:12.9]} 13. Bxf6 {[%clk 0:20:59.7]} 13... Qxf6 {[%clk 0:20:17.3]} 14. Qxf6 {[%clk 0:21:02.2]} 14... gxf6 {[%clk 0:20:25.3]} 15. Nxd5 {[%clk 0:21:10.5]} 15... Kd7 {[%clk 0:20:15.8]} 16. Nxf6+ {[%clk 0:21:17.4]} 16... Kc6 {[%clk 0:20:23.9]} 17. a4 {[%clk 0:21:20.1]} 17... Be5 {[%clk 0:20:32.3]} 18. Ne4 {[%clk 0:21:27.2]} 18... Bxb2 {[%clk 0:20:40.3]} 19. Rab1 {[%clk 0:21:32.2]} 19... Bf6 {[%clk 0:20:40.6]} 20. Nxf6 {[%clk 0:21:40.4]} 20... Rhd8 {[%clk 0:20:44]} 21. Re4 {[%clk 0:21:47.3]} 21... Rd6 {[%clk 0:20:40.3]} 22. Rc4# {[%clk 0:21:54.8]} 1-0

[Event "Live Chess"]
[Site "Chess.com"]
[Date "2021.02.06"]
[Round "2"]
[White "JazzyAsh"]
[Black "Samurai-Sammy"]
[Result "1-0"]
[CurrentPosition "8/8/4P3/8/2P1kR2/P1P4K/7P/8 b - -"]
[Timezone "UTC"]
[ECO "C50"]
[ECOUrl "https://www.chess.com/openings/Giuoco-Piano-Game-Four-Knights-Game"]
[UTCDate "2021.02.06"]
[UTCTime "19:03:34"]
[WhiteElo "973"]
[BlackElo "580"]
[TimeControl "1200+10"]
[Termination "JazzyAsh won by resignation"]
[StartTime "19:03:34"]
[EndDate "2021.02.06"]
[EndTime "19:11:23"]
[Link "https://www.chess.com/live/game/6472154024"]

1. e4 {[%clk 0:20:07.2]} 1... e5 {[%clk 0:20:06.4]} 2. Nf3 {[%clk 0:20:15.7]} 2... Nc6 {[%clk 0:20:13.4]} 3. Bc4 {[%clk 0:20:24.1]} 3... Bc5 {[%clk 0:20:20.4]} 4. Nc3 {[%clk 0:20:30.9]} 4... Nf6 {[%clk 0:20:28]} 5. O-O {[%clk 0:20:39.1]} 5... O-O {[%clk 0:20:35]} 6. d3 {[%clk 0:20:46.3]} 6... d6 {[%clk 0:20:38]} 7. Bg5 {[%clk 0:20:52.2]} 7... Bg4 {[%clk 0:20:42.2]} 8. Nd5 {[%clk 0:20:45.2]} 8... Nd4 {[%clk 0:20:48.5]} 9. Nxf6+ {[%clk 0:20:41.1]} 9... gxf6 {[%clk 0:20:53.8]} 10. Bh6 {[%clk 0:20:43.2]} 10... Nxf3+ {[%clk 0:20:58.2]} 11. gxf3 {[%clk 0:20:51.3]} 11... Bh3 {[%clk 0:21:01.6]} 12. Bxf8 {[%clk 0:20:57.5]} 12... Bxf1 {[%clk 0:21:09]} 13. Qxf1 {[%clk 0:21:01.1]} 13... Qxf8 {[%clk 0:21:15.2]} 14. Qg2+ {[%clk 0:21:03.7]} 14... Qg7 {[%clk 0:21:23.1]} 15. Qxg7+ {[%clk 0:21:11.5]} 15... Kxg7 {[%clk 0:21:28.9]} 16. a3 {[%clk 0:21:11.6]} 16... Kg8 {[%clk 0:21:32.4]} 17. c3 {[%clk 0:21:16]} 17... c6 {[%clk 0:21:38.1]} 18. b4 {[%clk 0:21:21.4]} 18... b5 {[%clk 0:21:43.2]} 19. bxc5 {[%clk 0:21:23]} 19... bxc4 {[%clk 0:21:48.5]} 20. dxc4 {[%clk 0:21:29.5]} 20... dxc5 {[%clk 0:21:52.2]} 21. Rd1 {[%clk 0:21:34.6]} 21... a6 {[%clk 0:21:57]} 22. Kg2 {[%clk 0:21:43.4]} 22... Kg7 {[%clk 0:22:02.4]} 23. Kg3 {[%clk 0:21:52.5]} 23... Kg6 {[%clk 0:22:09.7]} 24. f4 {[%clk 0:21:53.7]} 24... f5 {[%clk 0:22:17.1]} 25. fxe5 {[%clk 0:21:55.7]} 25... fxe4 {[%clk 0:22:24.2]} 26. f3 {[%clk 0:22:01.6]} 26... f6 {[%clk 0:22:31.2]} 27. Rd6 {[%clk 0:22:06]} 27... Ra7 {[%clk 0:22:24.6]} 28. Rxf6+ {[%clk 0:22:12.8]} 28... Kg7 {[%clk 0:22:25.6]} 29. Rxc6 {[%clk 0:22:19.5]} 29... h5 {[%clk 0:22:26.3]} 30. fxe4 {[%clk 0:22:28.2]} 30... a5 {[%clk 0:22:06.5]} 31. Rxc5 {[%clk 0:22:34.5]} 31... Ra6 {[%clk 0:22:11.8]} 32. Kh4 {[%clk 0:22:40.1]} 32... Kh6 {[%clk 0:22:18.4]} 33. Rd5 {[%clk 0:22:42.8]} 33... Rg6 {[%clk 0:22:21.3]} 34. Rxa5 {[%clk 0:22:28.1]} 34... Rg4+ {[%clk 0:22:28]} 35. Kh3 {[%clk 0:22:34.6]} 35... Kg5 {[%clk 0:22:26.5]} 36. e6+ {[%clk 0:22:37.2]} 36... Kf4 {[%clk 0:22:29.9]} 37. Rxh5 {[%clk 0:22:32.3]} 37... Kxe4 {[%clk 0:22:34.2]} 38. Rh4 {[%clk 0:22:38.4]} 38... Rf4 {[%clk 0:22:38]} 39. Rxf4+ {[%clk 0:22:46.2]} 1-0

[Event "Live Chess"]
[Site "Chess.com"]
[Date "2021.02.06"]
[Round "2"]
[White "ChessWizard1393"]
[Black "GivingPigeon"]
[Result "1-0"]
[CurrentPosition "5r1k/p1q2pQ1/1p1p4/3P1N1p/4P1pN/P5P1/2r2PP1/R5K1 b - -"]
[Timezone "UTC"]
[ECO "C44"]
[ECOUrl "https://www.chess.com/openings/Scotch-Game"]
[UTCDate "2021.02.06"]
[UTCTime "19:03:45"]
[WhiteElo "1166"]
[BlackElo "704"]
[TimeControl "1200+10"]
[Termination "ChessWizard1393 won by checkmate"]
[StartTime "19:03:45"]
[EndDate "2021.02.06"]
[EndTime "19:10:35"]
[Link "https://www.chess.com/live/game/6472155184"]

1. e4 {[%clk 0:20:09.3]} 1... e5 {[%clk 0:20:08.7]} 2. Nf3 {[%clk 0:20:18]} 2... Nc6 {[%clk 0:20:17.5]} 3. d4 {[%clk 0:20:26.5]} 3... Bd6 {[%clk 0:20:20.2]} 4. d5 {[%clk 0:20:34]} 4... Nb4 {[%clk 0:20:18.8]} 5. a3 {[%clk 0:20:41.4]} 5... Na6 {[%clk 0:20:26.1]} 6. Nc3 {[%clk 0:20:49.2]} 6... Nf6 {[%clk 0:20:32.5]} 7. Bg5 {[%clk 0:20:57.4]} 7... h6 {[%clk 0:20:40.1]} 8. Bh4 {[%clk 0:21:04]} 8... Nc5 {[%clk 0:20:33.3]} 9. Bc4 {[%clk 0:20:58.3]} 9... O-O {[%clk 0:20:36.5]} 10. O-O {[%clk 0:20:57.3]} 10... g5 {[%clk 0:20:41.8]} 11. Bg3 {[%clk 0:21:04.9]} 11... g4 {[%clk 0:20:48.7]} 12. Nh4 {[%clk 0:21:06.3]} 12... b6 {[%clk 0:20:38.4]} 13. b4 {[%clk 0:21:01.7]} 13... Ba6 {[%clk 0:20:40.1]} 14. bxc5 {[%clk 0:21:06.8]} 14... Bxc4 {[%clk 0:20:46.6]} 15. cxd6 {[%clk 0:21:15]} 15... Bxf1 {[%clk 0:20:55.3]} 16. Qxf1 {[%clk 0:21:23.8]} 16... Nh5 {[%clk 0:20:57.6]} 17. Bxe5 {[%clk 0:21:22.6]} 17... cxd6 {[%clk 0:21:06.2]} 18. Bg3 {[%clk 0:21:29.9]} 18... Rc8 {[%clk 0:20:50.6]} 19. Nb5 {[%clk 0:21:34.8]} 19... Nxg3 {[%clk 0:20:54.8]} 20. hxg3 {[%clk 0:21:37.9]} 20... Rxc2 {[%clk 0:21:00.3]} 21. Nd4 {[%clk 0:21:43]} 21... Rc5 {[%clk 0:20:56.5]} 22. Ndf5 {[%clk 0:21:49.4]} 22... h5 {[%clk 0:20:55.2]} 23. Nxd6 {[%clk 0:21:54.4]} 23... Qc7 {[%clk 0:20:39.8]} 24. Ndf5 {[%clk 0:21:56.7]} 24... d6 {[%clk 0:20:15.7]} 25. Qd3 {[%clk 0:21:48.5]} 25... Rc3 {[%clk 0:20:13.8]} 26. Qd2 {[%clk 0:21:53.8]} 26... Rc2 {[%clk 0:20:19.7]} 27. Qg5+ {[%clk 0:22:02.2]} 27... Kh8 {[%clk 0:20:23.8]} 28. Qg7# {[%clk 0:22:10.7]} 1-0